Cogmind - Beta 12 @@@ ROGUE MODE // 2023.05.22 @ 16:14:35 Player: snowphil Result: Self-destructed Performance ------------- Evolutions (1) 500 Regions Visited (3) 600 Robots Destroyed (11) 55 Value Destroyed (233) 233 Prototype IDs (2) 40 Alien Tech Used (0) 0 Bonus (0) 0 TOTAL SCORE: 1428 Bonus ------- None Cogmind --------- Core Integrity 133/400 Matter 215/300 Energy 60/100 System Corruption 0% Temperature Cool (6) Movement Hovering (60) Location -9/Materials Parts ------- > --- POWER (1) -------- (None) > --- PROPULSION (2) --- Hover Unit > --- UTILITY (4) ------ Small Storage Unit Signal Interpreter Hacking Suite > --- WEAPON (2) ------- (None) > --- INVENTORY (8) ---- Welding Torch Peak State ------------ > --- POWER ------------ Light Ion Engine > --- PROPULSION ------- Aluminum Leg Aluminum Leg > --- UTILITY ---------- Small Storage Unit Sensor Array Terrain Scanner Hacking Suite > --- WEAPON ----------- Assault Cannon Assault Cannon > --- INVENTORY -------- Light Ion Engine Hover Unit Hover Unit Visual Processing Unit EM Pulse Gun EM Pulse Gun Light Assault Rifle Mining Laser [Rating: 15] Favorites ----------- Power Light Ion Engine Engine Light Ion Engine Propulsion Aluminum Leg Leg Aluminum Leg Hover Unit Hover Unit Utility Small Storage Unit Device Sensor Array Storage Small Storage Unit Processor Signal Interpreter Hackware Hacking Suite Weapon EM Pulse Gun Energy Gun EM Pulse Gun Ballistic Gun Light Assault Rifle Ballistic Cannon Assault Cannon Special Weapon Mining Laser Build | -11 -10 -10 -9 ------- Run | Jun Mat Min Mat Slots Evolved 2 | . . . 2 Power . | . . . . Propulsion . | . . . . Utility 2 | . . . 2 Weapon . | . . . . Parts Attached 20 | 7 1 . 12 Power 2 | 1 . . 1 Engine 2 | 1 . . 1 Core . | . . . . Reactor . | . . . . Propulsion 4 | 2 . . 2 Treads . | . . . . Leg 2 | 2 . . . Wheel . | . . . . Hover 2 | . . . 2 Flight . | . . . . Utility 5 | 1 1 . 3 Device 2 | . . . 2 Storage 1 | 1 . . . Processor 1 | . . . 1 Hackware 1 | . 1 . . Protection . | . . . . Artifact . | . . . . Weapon 9 | 3 . . 6 Energy Gun 4 | 2 . . 2 Energy Cannon . | . . . . Ballistic Gun 2 | 1 . . 1 Ballistic Cannon 2 | . . . 2 Launcher . | . . . . Special Weapon 1 | . . . 1 Impact Weapon . | . . . . Slashing Weapon . | . . . . Piercing Weapon . | . . . . Special Melee Weapon . | . . . . Unidentified Prototypes . | . . . . Parts Lost 12 | . . . 12 Power 2 | . . . 2 Propulsion 3 | . . . 3 Utility 1 | . . . 1 Weapon 6 | . . . 6 Highest Loss Streak 12 | . . . 12 To Critical Strikes 1 | . . . 1 Average Slot Usage (%) 95 | . 97 100 93 Engine 12 | . 14 14 9 Leg 24 | . 28 28 19 Device 5 | . . . 12 Storage 12 | . 14 14 11 Processor 2 | . . . 6 Hackware 11 | . 12 14 11 Energy Gun 17 | . 28 28 5 Ballistic Cannon 6 | . . . 14 Naked Turns . | . . . . Heaviest Build 20 | 12 12 12 20 Greatest Support 20 | 20 20 20 20 Greatest Overweight (x) . | . . . . Average Overweight (x) . | . . . . Largest Inventory Capacity 8 | 8 8 8 8 Average Capacity 7 | 5 8 8 8 Most Carried 8 | 5 8 8 8 Average Carried 6 | 4 6 8 6 Final Capacity 8 | 8 8 8 8 Final Carried 8 | 2 8 8 1 Class Distribution -------------------- 100% | Mutant Dominant Class ---------------- Mutant | -10/Materials Mutant | -10/Mines Mutant | -9/Materials Resources | -11 -10 -10 -9 ----------- Run | Jun Mat Min Mat Matter Collected 449 | 212 63 . 174 Remotely . | . . . . Salvage Created 232 | . 63 . 169 Parts 24 | . 9 . 15 Haulers Intercepted . | . . . . Recyclers Shooed . | . . . . Parts Field Recycled . | . . . . Retrieved Matter . | . . . . Parts Self-Destructed . | . . . . Prevented . | . . . . Kills | -11 -10 -10 -9 ------- Run | Jun Mat Min Mat Combat Hostiles Destroyed 5 | . . . 5 Guns 1 | . . . 1 Cannons 4 | . . . 4 Classes Destroyed 5 | . 2 . 3 Builder 1 | . . . 1 Operator 1 | . 1 . . Watcher 4 | . 2 . 2 Swarmer 2 | . . . 2 Grunt 3 | . . . 3 Best Kill Streak 6 | . 1 . 6 Combat Bots Only 2 | . . . 2 Max Kills in Single Turn 1 | . 1 . 1 Gunslinging . | . . . . Exploded . | . . . . Melee . | . . . . Uniques/NPCs Destroyed . | . . . . Combat | -11 -10 -10 -9 -------- Run | Jun Mat Min Mat Damage Taken 1238 | . 60 10 1168 Core 296 | . 19 10 267 Absorbed by Shields . | . . . . Core Remaining (%) 94 | 100 . 88 . Volleys Fired 36 | . 6 . 30 Largest 2 | . 2 . 2 Hottest 88 | . 80 . 88 Shots Fired 61 | . 12 . 49 Gun 23 | . 12 . 11 Cannon 38 | . . . 38 Launcher . | . . . . Special . | . . . . Kinetic 42 | . . . 42 Thermal . | . . . . Explosive . | . . . . Electromagnetic 19 | . 12 . 7 Robot Hit Streak 5 | . 3 . 5 Robot Miss Streak 3 | . 3 . 3 Penetration Max . | . . . . Secondary Targets . | . . . . Shots Hit Robots 35 | . 6 . 29 Core Hits 13 | . 3 . 10 Critical Kills . | . . . . Critical Parts Destroyed . | . . . . Critical Strikes . | . . . . Melee Attacks . | . . . . Impact . | . . . . Slashing . | . . . . Piercing . | . . . . Sneak Attacks . | . . . . Combat Hostiles . | . . . . Follow-up Attacks . | . . . . Damage Inflicted 816 | . 129 . 687 Guns 200 | . 101 . 99 Cannons 531 | . . . 531 Explosions 85 | . 28 . 57 Melee . | . . . . Ramming . | . . . . Kinetic 561 | . . . 561 Thermal 85 | . 28 . 57 Explosive . | . . . . Electromagnetic 170 | . 101 . 69 Impact . | . . . . Slashing . | . . . . Piercing . | . . . . Highest Corruption . | . . . . Average Corruption . | . . . . Corruption Purged . | . . . . Corruption Blocked . | . . . . Overload Shots . | . . . . Overflow Damage 22 | . . . 22 Projectiles 19 | . . . 19 Explosions 3 | . . . 3 Melee . | . . . . Knockbacks 3 | . . . 3 Impact . | . . . . Kinetic 3 | . . . 3 Secondary . | . . . . Self-Inflicted Damage 65 | . 39 . 26 Shots 2 | . 1 . 1 Rammed . | . . . . Targets Rammed . | . . . . Kicked . | . . . . Crushed . | . . . . Highest Temperature 348 | . 30 . 348 Average Temperature 163 | . 13 . 192 Received Heat Transfer 405 | . 12 6 387 Effects 1 | . . . 1 Interference 1 | . . . 1 Siege Activations . | . . . . Robots Corrupted . | . . . . Combat Hostiles . | . . . . Parts Fried 1 | . . . 1 Impact Corruptions . | . . . . Robots Melted . | . . . . Combat Hostiles . | . . . . Parts Melted 1 | . 1 . . Heat Transferred 100 | . 50 . 50 Parts Sabotaged . | . . . . Parts Stolen . | . . . . Parts Stripped . | . . . . Power Chain Reactions 2 | . 1 . 1 Missiles Intercepted . | . . . . Alert | -11 -10 -10 -9 ------- Run | Jun Mat Min Mat Peak Influence 186 | . 118 45 186 Initial 45 | . . 45 17 Average 54 | . 47 45 72 Maximum Alert Level . | . . . . Low Security (%) 100 | 100 100 100 100 Level 1 . | . . . . Level 2 . | . . . . Level 3 . | . . . . Level 4 . | . . . . Level 5 . | . . . . High Security . | . . . . Max Security . | . . . . Squads Dispatched 1 | . 1 . . Investigation 1 | . 1 . . Extermination . | . . . . Reinforcement . | . . . . Assault . | . . . . Garrison . | . . . . Intercept . | . . . . Searches Triggered . | . . . . Construction Impeded . | . . . . Haulers Reinforced . | . . . . Active Scanning Responses . | . . . . Cargo Convoy Interrupts . | . . . . Stealth | -11 -10 -10 -9 --------- Run | Jun Mat Min Mat Distress Signals 1 | . . . 1 Communications Jammed . | . . . . Distress Signals . | . . . . Times Spotted 29 | . 9 4 16 Peak Tracking Total 8 | . 4 4 8 Tactical Retreats 2 | . . . 2 Traps | -11 -10 -10 -9 ------- Run | Jun Mat Min Mat Traps Triggered . | . . . . Indirectly . | . . . . Trap Hack Attempts . | . . . . Triggered . | . . . . Disarmed . | . . . . Reprogrammed . | . . . . Reused . | . . . . Traps Extracted . | . . . . Installed . | . . . . Triggered 1 | . 1 . . Machines | -11 -10 -10 -9 ---------- Run | Jun Mat Min Mat Machines Disabled . | . . . . Max in Single Turn . | . . . . Machines Repaired . | . . . . Machines Sabotaged . | . . . . Overloaded Fab Kills . | . . . . Hacking | -11 -10 -10 -9 --------- Run | Jun Mat Min Mat Machines Accessed 3 | . 2 . 1 Terminals 3 | . 2 . 1 Fabricators . | . . . . Repair Stations . | . . . . Recycling Units . | . . . . Scanalyzers . | . . . . Garrison Access . | . . . . Total Hacks 7 | . 5 . 2 Successful 5 | . 4 . 1 Failed 2 | . 1 . 1 Catastrophic . | . . . . Database Lockouts . | . . . . Manual 3 | . 3 . . Terminals 7 | . 5 . 2 Fabricators . | . . . . Repair Stations . | . . . . Recycling Units . | . . . . Scanalyzers . | . . . . Garrison Access . | . . . . Terminal Hacks 4 | . 3 . 1 Prototype ID Bank 1 | . 1 . . Branch Access Points 1 | . 1 . . Locate Traps 1 | . . . 1 Registered Components 1 | . 1 . . Fabricator Hacks . | . . . . Repair Station Hacks . | . . . . Recycling Unit Hacks . | . . . . Scanalyzer . | . . . . Garrison Access Hacks . | . . . . Unauthorized Hacks 1 | . 1 . . Terminals 1 | . 1 . . Botnet 1 | . 1 . . Fabricators . | . . . . Repair Stations . | . . . . Recycling Units . | . . . . Scanalyzers . | . . . . Garrison Access . | . . . . Data Cores Recovered 1 | . 1 . . Used . | . . . . Hacking Detections 3 | . 2 . 1 Full Trace Events . | . . . . Feedback Events . | . . . . Feedback Blocked . | . . . . Robot Schematics Acquired . | . . . . Robots Built . | . . . . Authchips . | . . . . Time . | . . . . Total Robot Build Rating . | . . . . Part Schematics Acquired . | . . . . Parts Built . | . . . . Authchips . | . . . . Time . | . . . . Total Part Build Rating . | . . . . Parts Repaired . | . . . . Time . | . . . . Parts Recycled . | . . . . Recycled Matter . | . . . . Retrieved Matter . | . . . . Retrieved Components . | . . . . Parts Scanalyzed . | . . . . Part Schematics Acquired . | . . . . Parts Damaged . | . . . . Bothacking | -11 -10 -10 -9 ------------ Run | Jun Mat Min Mat Used RIF Installer . | . . . . Robots Hacked . | . . . . Non-combat . | . . . . Combat . | . . . . Robot Hacks Applied . | . . . . Relay Couplers Released . | . . . . Fabnet Peak Effective % . | . . . . Robots Rewired . | . . . . Allies Hacked . | . . . . Hacks Repelled . | . . . . Allies | -11 -10 -10 -9 -------- Run | Jun Mat Min Mat Total Allies . | . . . . Largest Group . | . . . . Highest-Rated Group . | . . . . Highest-Rated Ally . | . . . . Total Orders . | . . . . Ally Attacks . | . . . . Total Damage . | . . . . Kills . | . . . . Allies Corrupted . | . . . . Allies Melted . | . . . . Intel | -11 -10 -10 -9 ------- Run | Jun Mat Min Mat Robot Analysis Total . | . . . . Derelict Logs Recovered . | . . . . Drone Launches . | . . . . Drone Recoveries . | . . . . Exploration | -11 -10 -10 -9 ------------- Run | Jun Mat Min Mat Turns Passed 557 | 42 221 62 232 Spaces Moved 347 | 30 157 52 108 Core 10 | 10 . . . Treads . | . . . . Legs 326 | 20 157 52 97 Wheels . | . . . . Hover 11 | . . . 11 Flight . | . . . . Fastest Speed 50 | 50 120 120 56 Average Speed 116 | 96 120 120 113 Slowest Speed 120 | 120 120 120 120 Overloaded Moves . | . . . . Propulsion Burnouts . | . . . . Robots Hopped . | . . . . Cave-ins Triggered . | . . . . Exploration Rate (%) 16 | 4 34 14 12 Regions Visited 3 Branch Regions 1 Pre-discovered Areas . | . . . . Known Exits Taken 1 | . 1 . . Unknown Exits Taken 2 | 1 . 1 . Scrap Searched . | . . . . Spaces Dug . | . . . . Terrain Destroyed 23 | . 7 . 16 Melee . | . . . . Projectile 8 | . . . 8 AOE 15 | . 7 . 8 Terrain Rammed . | . . . . Walls Destroyed . | . . . . Machines Disabled . | . . . . Actions | -11 -10 -10 -9 --------- Run | Jun Mat Min Mat Total 439 | 42 178 51 168 Wait 16 | . 4 . 12 Move 344 | 29 156 51 108 Hop . | . . . . Pick Up 18 | 5 9 . 4 Fast Attach 3 | 3 . . . Attach 14 | 4 1 . 9 Detach 1 | 1 . . . Swap 3 | . . . 3 Drop 4 | . 2 . 2 Fire 36 | . 6 . 30 Melee . | . . . . Ram . | . . . . Kick . | . . . . Crush . | . . . . Escape Stasis . | . . . . Rewire . | . . . . Trap . | . . . . Miscellaneous . | . . . . Route ------- -11/Junkyard -10/Materials (discovered 2 exits: *Min x2) -10/Mines -9/Materials History --------- Turn | Location | Event 14 | -11/Junkyard | Discovered new exit (range 16) 43 | -11/Junkyard | Entered Materials 113 | -10/Materials | Identified exit to Mines 264 | -10/Materials | Entered Mines 307 | -10/Mines | Build established: Mutant 318 | -10/Mines | Discovered new exit (range 5) 326 | -10/Mines | Entered Materials 326 | -9/Materials | Evolved 2 slots: Utility x2 541 | -9/Materials | Core integrity fell below 50% 558 | -9/Materials | Self-destructed Last Messages --------------- 00534_ K-01 Serf collects debris. 00534_ Aluminum Leg destroyed. 00536_ U-05 Engineer lays Concrete. 00537_ K-01 Serf collects debris. 00541_ Imp. Heat Sink fried. 00541_ G-47 Trooper destroyed. 00543_ Acquired 60 matter. 00543_ K-01 Serf collects debris. 00544_ Acquired 20 matter. 00544_ Hover Unit destroyed. 00545_ Acquired Welding Torch. 00546_ K-01 Serf collects debris. 00546_ Lgt. Assault Rifle destroyed. 00549_ R-06 Scavenger collects Terrain Scanner. 00549_ K-01 Serf collects debris. 00550_ K-01 Serf destroyed. 00550_ K-01 Serf collects debris. 00551_ K-01 Serf suffers critical hit (Destroy). 00553_ K-01 Serf collects debris. 00557_ Mining Laser destroyed. Map ----- +----------------------------------------------------+ | ?????????????????????????????????????????????????? | | ?????????????????????????????????????????????????? | | ?????????????????????????????????????????????????? | | ?????????????????????????????????????????????????? | | ?????????????????????????????????????????????????? | | ?????????????????????????????????????????????????? | | ?????????????????????????????????????????????????? | | ?????????????????????????????????????????????????? | | ?????????????????????????????????????????????????? | | ?????????????????????????????????????????????????? | | ?????????????????????????????????????????????????? | | ?????????????????????????????????????????????????? | | ?????????????????????????????????#???????????????? | | ????????????????????????????"""? ????????????????? | | ????????????????????????????"""" ????????????????? | | ????????????????????????????"""" ????????????????? | | ???????????????????????????? ?????????????????? | | ???????????????????????????? ?????????????????? | | ???????????????????????????? ?????????????????? | | ???????????????????????????? ??????????????????? | | ????????????????#####???????% ??????????????????? | | ????????????????# #########+#??????????????????? | | ????????????????# # ##%##?????????????????? | | ????????????????# # ##=%#?????????????????? | | ????????????????#[[ # ks ##["#?????????????????? | | ????????????????#[[ # ! k@ + =#??????????????????? | | ????????????????#[[ #=% sg###"#?????????????????? | | ????????????????# # * #####?????????????????? | | ????????# #######+####+########## #??????????? | | ????????+ ??????????? | | ????????# ??????????? | | ????????# ??????????? | | ????????# ####+#########+#####+#######???????????? | | ????????????????????# #???????????????????????? | | ????????????????????# #???????????????????????? | | ????????????????????# #???????????????????????? | | ??????????? ????????# #???????????????????????? | | ????????????????????# #???????????????????????? | | ????????????????????# #???????????????????????? | | ????????? ??????????# #???????????????????????? | | ???????????????????## #???????????????????????? | | ????????????????????# #???#????#??????????????? | | ?????????????????#??##+###???????????????????????? | | ?????????????????????# ###???????????????????????? | | ?????????????????????# #?????????????????????????? | | ??????????????#??????# #?????????????????????????? | | ????????? ???????????#*#???#??????#????#?????????? | | ?????????????????????#!#?????????????????????????? | | ??????????#??????????#!#????????????#????????????? | | ?????????????????? ??# ########??????????????????? | +----------------------------------------------------+ Best States ------------- Heat Dissipation 28 Energy Generation 10 Energy Capacity 125 Matter Stores 295 Matter Capacity 300 Sight Range 16 Robot Scan Range 14 Terrain Scan Range 14 Terrain Scan Density 10 Evasion (%) 55 Offensive Hacking 10 Item Schematics ----------------- None Robot Schematics ------------------ None Fabricated ------------ Nothing Alien Tech Used ----------------- None Achievements -------------- None Challenges ------------ None Game ------ Seed SpliceReactiveGenerator Manual? 0 Play Time 00:17:30 Cumulative 97.5 hours Start 2023.05.22 @ 16:01:39 End 2023.05.22 @ 16:14:35 Sessions 1 Manual Loads 0 Difficulty Rogue Special Mode None Game No. 6 Rogue 4 Adventurer 0 Explorer 2 Win Type - Total 3 Types 0/0/0/3/0/0/0/0/0 Lore% 25 Gallery% 24 Achievement% 39 Wizard Run 0 Options --------- ASCII 0 Keyboard 0 Movement Mouse Keybinds 0 Fullscreen 1 Font 18/SmallcapsGlow Map View 70x50 Tactical HUD 1 Map Filters NONE Filters NONE Steam 1 RUN: 2ccf5b8f-79e3-4ef0-859b-791d0c4845b6